Cogmind - Beta 16 @@@ ROGUE MODE // 2025.12.15 @ 22:38:05 Player: tsintsir Result: Destroyed by P-60 Hacker with Shock Rifle Performance ------------- Evolutions (4) 2000 Regions Visited (11) 2200 Robots Destroyed (96) 480 Value Destroyed (3346) 3346 Prototype IDs (13) 260 Alien Tech Used (0) 0 Bonus (687) 687 TOTAL SCORE: 8973 Bonus ------- Follower Combat Kills 387 Met Data Miner 300 Cogmind --------- Core Integrity 0/850 Matter 122/300 Energy 55/100 System Corruption 7% Temperature Cool (0) Movement Core (50) Location -6/Factory Parts ------- > --- POWER (2) -------- (None) > --- PROPULSION (4) --- (None) > --- UTILITY (5) ------ (None) > --- WEAPON (4) ------- (None) > --- INVENTORY (5) ---- Energy Well (350) Advanced Sensor Array Relay Coupler [NC] (19) Relay Coupler [Sentry] (13) Peak State ------------ > --- POWER ------------ Micro Nuclear Core Light Fission Core > --- PROPULSION ------- Flexi-carbon Leg Gravmag System Nuclear Pulse Array > --- UTILITY ---------- Matter Compressor Particle Charger Advanced ECM Suite Improved Propulsion Shielding Improved Propulsion Shielding > --- WEAPON ----------- Coil Gun Advanced Assault Cannon Remote Datajack > --- INVENTORY -------- Nuclear Pulse Thruster Energy Well Advanced Sensor Array Relay Coupler [NC] Relay Coupler [Sentry] [Rating: 63] Favorites ----------- Power Heavy Deuterium Engine Engine Heavy Deuterium Engine Power Core Light Fission Core Propulsion Improved Treads Treads Improved Treads Leg Aluminum Leg Wheel Subdweller Monowheel Hover Unit Gravmag System Flight Unit Nuclear Pulse Array Utility Improved Heat Sink Device Improved Heat Sink Storage Large Storage Unit Processor Terrain Scan Processor Protection Improved Propulsion Shielding Weapon Beam Rifle Energy Gun Beam Rifle Energy Cannon Proton Cannon Ballistic Gun Coil Gun Ballistic Cannon Advanced Assault Cannon Launcher Heavy Rocket Launcher Special Weapon Remote Datajack Impact Weapon Heavy Mace Special Melee Weapon Datajack Build | -11 -10 -10 -10 -8 -8 -7 -7 -7 -7 -6 -6 ------- Run | Yrd Mat Min Sub Mat Sto Fac Low Low Dat Pro Fac Slots Evolved 8 | . . . . 4 . 2 . . . . 2 Power 1 | . . . . 1 . . . . . . . Propulsion 2 | . . . . 1 . . . . . . 1 Utility 3 | . . . . 1 . 1 . . . . 1 Weapon 2 | . . . . 1 . 1 . . . . . Parts Attached 107 | 6 11 2 11 11 25 13 3 2 . 3 20 Power 18 | 1 1 . 1 1 8 2 . . . 1 3 Engine 10 | 1 . . 1 1 4 2 . . . 1 . Core 8 | . 1 . . . 4 . . . . . 3 Reactor . | . . . . . . . . . . . . Propulsion 27 | 2 3 . 6 4 3 1 1 . . . 7 Treads 8 | . . . . 3 3 1 1 . . . . Leg 9 | . 3 . 2 . . . . . . . 4 Wheel 7 | 2 . . 4 1 . . . . . . . Hover 1 | . . . . . . . . . . . 1 Flight 2 | . . . . . . . . . . . 2 Utility 31 | 1 3 1 2 2 10 5 . . . 1 6 Device 17 | . 1 1 1 1 7 3 . . . 1 2 Storage 6 | 1 . . . . 1 2 . . . . 2 Processor 3 | . 2 . . 1 . . . . . . . Hackware . | . . . . . . . . . . . . Protection 5 | . . . 1 . 2 . . . . . 2 Artifact . | . . . . . . . . . . . . Weapon 31 | 2 4 1 2 4 4 5 2 2 . 1 4 Energy Gun 16 | 1 2 1 1 1 4 4 1 . . . 1 Energy Cannon 3 | . . . 1 1 . . . 1 . . . Ballistic Gun 2 | 1 . . . . . . . . . . 1 Ballistic Cannon 2 | . . . . . . . . . . 1 1 Launcher 3 | . 1 . . . . 1 . 1 . . . Special Weapon 3 | . . . . 1 . . 1 . . . 1 Impact Weapon 1 | . . . . 1 . . . . . . . Slashing Weapon . | . . . . . . . . . . . . Piercing Weapon . | . . . . . . . . . . . . Special Melee Weapon 1 | . 1 . . . . . . . . . . Unidentified Prototypes 3 | . . . . . . 3 . . . . . Corrupted Parts 1 | . . . 1 . . . . . . . . System Corruption 4 | . . . 4 . . . . . . . . Parts Lost 48 | . 3 3 4 2 6 2 . . . 20 8 Power 10 | . . 2 . . 2 1 . . . 3 2 Propulsion 11 | . 1 . 1 . 2 1 . . . 4 2 Utility 9 | . . 1 1 . 1 . . . . 3 3 Weapon 18 | . 2 . 2 2 1 . . . . 10 1 Highest Loss Streak 6 | . 3 2 3 2 5 1 . . . 6 4 To Critical Strikes . | . . . . . . . . . . . . Average Backups 7 | 1 3 4 3 2 4 12 13 14 14 6 4 Power . | . . . . . . 1 . 1 1 . . Propulsion . | 1 1 1 . . . . . 1 1 . . Utility 4 | . . . . . 2 7 7 6 6 5 3 Weapon 1 | . . 1 1 1 1 2 2 4 5 . . Tool/Special . | . . . . . . . . . . . . Unused Backups 10 | . . . 1 . 2 1 2 . . 1 3 Power 2 | . . . 1 . . . 1 . . . . Propulsion . | . . . . . . . . . . . . Utility 7 | . . . . . 2 1 . . . 1 3 Weapon . | . . . . . . . . . . . . Tool/Special 1 | . . . . . . . 1 . . . . Average Slot Usage (%) 86 | . 94 95 76 83 96 99 100 99 100 71 63 Engine 11 | . 8 9 12 18 10 14 15 15 15 14 . Core 2 | . 5 . . . 6 . . . . . 7 Treads 13 | . . . . 12 26 22 23 23 23 3 . Leg 2 | . 13 28 3 . . . . . . . 5 Wheel 1 | . 13 . 19 4 . . . . . . . Device 17 | . 4 14 1 13 16 23 23 22 23 22 11 Storage 4 | . 9 . . . 2 7 7 7 7 6 5 Processor 1 | . 10 14 . 8 4 . . . . . . Protection 2 | . . . 11 . 1 . . . . . 11 Energy Gun 16 | . 9 28 14 8 25 28 22 15 15 9 . Energy Cannon 1 | . . . 12 9 . . . 6 7 . . Launcher 1 | . 4 . . . . 1 7 7 7 1 . Special Weapon 1 | . . . . 1 . . . . . 4 2 Impact Weapon 1 | . . . . 5 1 . . . . 5 . Peak Build Rating 63 | 6 11 12 15 23 26 47 49 52 51 51 63 Average Rating 34 | 4 8 10 12 19 23 41 47 51 51 33 49 On Entrance 23 | . 6 11 10 11 23 25 46 48 51 51 5 Avg Prop Armor Cover (%) 6 | . . . . . . . . . . . 6 Naked Turns 10 | . . . . . . . . . . . 10 Heaviest Build 117 | 11 14 11 34 28 40 117 63 69 69 69 40 Greatest Support 74 | 32 32 20 40 63 63 71 74 74 74 74 40 Greatest Overweight (x) 20 | . . . 11 1 . 1 . . . 20 1 Average Overweight (x) . | . . . . . . . . . . 4 . Largest Inventory Capacity 25 | 8 8 5 5 5 8 25 15 15 15 15 5 Average Capacity 10 | 7 6 5 5 5 5 14 15 15 15 14 5 Most Carried 15 | 3 5 5 5 4 8 15 15 15 14 14 5 Average Carried 7 | 1 3 4 3 2 4 12 13 14 14 6 4 Final Capacity 15 | 8 5 5 5 5 8 15 15 15 15 5 5 Final Carried 14 | 2 5 5 3 3 8 13 13 14 14 5 4 Class Distribution -------------------- 30% | Gunner 17% | Mutant 12% | Scavenger-Gunner 11% | Scavenger-Mutant 10% | Commander-Gunner 5% | Infiltrator-Mutant 4% | Subdweller-Mutant 3% | Infiltrator-Tank Dominant Class ---------------- Scavenger-Mutant | -10/Materials Scavenger-Mutant | -10/Mines Subdweller-Mutant | -10/Subcaves Scavenger-Mutant | -8/Materials Scavenger-Gunner | -8/Storage Commander-Gunner | -7/Factory Gunner | -7/Lower Caves Gunner | -7/Lower Caves Gunner | -7/Data Miner Mutant | -6/Proximity Caves Infiltrator-Mutant | -6/Factory Resources | -11 -10 -10 -10 -8 -8 -7 -7 -7 -7 -6 -6 ----------- Run | Yrd Mat Min Sub Mat Sto Fac Low Low Dat Pro Fac Matter Collected 1987 | 260 120 84 117 118 489 289 80 125 . 178 127 Remotely . | . . . . . . . . . . . . Salvage Created 3925 | 86 170 180 190 231 1583 851 43 118 . 367 106 Parts 172 | 1 8 6 9 15 50 43 1 13 . 17 9 Haulers Intercepted . | . . . . . . . . . . . . Recyclers Shooed 6 | . . 1 . . 3 1 . . . . 1 Parts Field Recycled . | . . . . . . . . . . . . Retrieved Matter . | . . . . . . . . . . . . Parts Self-Destructed 41 | . . . 4 . . . 15 8 . 14 . Prevented 2 | . . . . . . . . 1 . 1 . Parts Restored . | . . . . . . . . . . . . Kills | -11 -10 -10 -10 -8 -8 -7 -7 -7 -7 -6 -6 ------- Run | Yrd Mat Min Sub Mat Sto Fac Low Low Dat Pro Fac Combat Hostiles Destroyed 73 | . 4 4 4 4 18 15 1 9 . 11 3 Melee 1 | . . . . . 1 . . . . . . Guns 48 | . 4 3 2 1 13 11 1 3 . 9 1 Cannons 9 | . . . 2 2 . . . 1 . 2 2 AOE 8 | . . . . . 1 2 . 5 . . . Classes Destroyed 14 | 1 2 . 1 3 3 3 . . . 1 . Worker 7 | . . . . . 1 6 . . . . . Builder 2 | . 1 . . . . 1 . . . . . Tunneler 1 | . . . . 1 . . . . . . . Recycler 10 | 1 . . . . 7 2 . . . . . Watcher 3 | . . . . . 2 1 . . . . . Swarmer 18 | . . . . . . 4 . 8 . 6 . Grunt 25 | . 4 4 . 2 9 5 1 . . . . Brawler 2 | . . . . . 1 1 . . . . . Duelist 1 | . . . . . . . . . . 1 . Sentry 12 | . . . . 1 8 1 . . . 2 . Specialist 1 | . . . . . . 1 . . . . . Hunter 5 | . . . . 1 . 2 . . . 2 . Programmer 5 | . . . . . . 1 . 1 . . 3 Subdweller 4 | . . . 4 . . . . . . . . Best Kill Streak 7 | 1 4 2 2 3 7 7 1 4 . 4 1 Combat Bots Only 6 | . 3 2 2 3 6 4 1 4 . 4 1 Max Kills in Single Turn 3 | 1 2 1 1 1 1 2 1 3 . 1 1 Gunslinging 1 | . 1 . . . . 1 . . . . . Exploded 3 | . . . . . 1 2 . 3 . . . Melee 1 | . . . . . 1 . . . . . . Uniques/NPCs Destroyed . | . . . . . . . . . . . . Combat | -11 -10 -10 -10 -8 -8 -7 -7 -7 -7 -6 -6 -------- Run | Yrd Mat Min Sub Mat Sto Fac Low Low Dat Pro Fac Hostile Shots Fired 744 | . 30 44 25 24 115 82 2 35 . 168 219 Missed 259 | . 5 18 8 3 25 29 . 13 . 55 103 Hits 485 | . 25 26 17 21 90 53 2 22 . 113 116 Melee 9 | . . . . . . . . . . 8 1 Projectile 476 | . 25 26 17 21 90 53 2 22 . 105 115 Critical Strikes 10 | . . . . . 2 2 . 1 . 1 4 Damage Taken 7636 | . 351 351 450 340 1591 643 31 333 . 1772 1774 Core 1844 | . 46 57 81 127 214 51 . 30 . 373 865 Absorbed by Shields . | . . . . . . . . . . . . Redirected to Shielding 211 | . . . . . . . . . . . 211 Regen/Repaired (Parts) 285 | . . . . . 88 197 . . . . . Core Remaining (%) 49 | 100 . . 26 . 38 . . . . 35 . Volleys Fired 252 | 5 22 21 17 13 61 43 8 14 . 37 11 Largest 4 | 1 2 2 2 3 3 4 3 3 . 3 2 Hottest 253 | 40 105 130 130 213 177 253 212 224 . 224 70 Shots Fired 603 | 5 36 37 34 31 177 142 12 32 . 75 22 Gun 511 | 5 31 37 20 10 177 136 6 18 . 60 11 Cannon 67 | . . . 14 18 . . . 9 . 15 11 Launcher 15 | . 5 . . . . 6 . 4 . . . Special 10 | . . . . 3 . . 6 1 . . . Kinetic 51 | . 19 . 2 . . . . . . 8 22 Thermal 453 | . 3 27 15 11 177 136 6 18 . 60 . Explosive 15 | . 5 . . . . 6 . 4 . . . Electromagnetic 77 | 5 9 10 17 20 . . . 9 . 7 . Robot Hit Streak 19 | 3 5 5 11 6 19 12 9 5 . 11 9 Robot Miss Streak 7 | 1 4 2 2 6 7 6 1 4 . 5 3 Penetration Max . | . . . . . . . . . . . . Secondary Targets 6 | . 2 . . . 2 2 . . . . . Max Gunslinging Chain 1 | . 1 . . . 1 1 . . . . . Shots Hit Robots 394 | 4 16 23 30 22 114 86 9 19 . 55 16 Core Hits 195 | 2 12 8 11 7 48 40 1 13 . 48 5 Critical Kills 2 | . . . . . 1 . . . . . 1 Critical Parts Destroyed 1 | . . . . . 1 . . . . . . Critical Strikes 21 | . . 2 . . 12 5 . . . . 2 Burn 17 | . . 2 . . 10 5 . . . . . Destroy 1 | . . . . . . . . . . . 1 Blast 1 | . . . . . . . . . . . 1 Smash 2 | . . . . . 2 . . . . . . Melee Attacks 9 | . . . . . 9 . . . . . . Impact 9 | . . . . . 9 . . . . . . Slashing . | . . . . . . . . . . . . Piercing . | . . . . . . . . . . . . Sneak Attacks 1 | . . . . . 1 . . . . . . Combat Hostiles . | . . . . . . . . . . . . Follow-up Attacks . | . . . . . . . . . . . . Damage Inflicted 8404 | 49 345 357 609 511 2019 2005 73 956 . 1032 448 Guns 5438 | 49 166 357 256 104 1547 1563 73 238 . 864 221 Cannons 1037 | . . . 272 337 . . . 33 . 168 227 Explosions 1498 | . 179 . 81 38 73 442 . 685 . . . Melee 399 | . . . . . 399 . . . . . . Ramming . | . . . . . . . . . . . . Kinetic 663 | . 85 . 17 . . . . . . 113 448 Thermal 5100 | . . 268 366 181 1547 1563 73 238 . 864 . Explosive 1379 | . 179 . . . 73 442 . 685 . . . Electromagnetic 863 | 49 81 89 226 330 . . . 33 . 55 . Impact 399 | . . . . . 399 . . . . . . Slashing . | . . . . . . . . . . . . Piercing . | . . . . . . . . . . . . Highest Corruption 7 | . . . 4 . . 1 . 2 2 2 7 Average Corruption 1 | . . . 4 . . 1 . 1 2 2 1 Corruption Purged 1 | . . . . . . 1 . . . . . Corruption Blocked . | . . . . . . . . . . . . Effects 45 | . . . 1 . . 2 . 7 1 30 4 Message Errors 7 | . . . . . . . . 1 . 5 1 Matter Fused 10 | . . . 1 . . . . 1 . 7 1 Heat Flow Errors 5 | . . . . . . 1 . 2 . 2 . Energy Discharges 7 | . . . . . . . . 1 . 5 1 Data Loss (minor) 11 | . . . . . . . . 2 . 8 1 Data Loss (major) 3 | . . . . . . . . . 1 2 . Misfires 1 | . . . . . . . . . . 1 . Alerts 1 | . . . . . . 1 . . . . . Overload Shots . | . . . . . . . . . . . . Overflow Damage 246 | . . . . . 165 . . 81 . . . Projectiles 6 | . . . . . . . . 6 . . . Explosions 75 | . . . . . . . . 75 . . . Melee 165 | . . . . . 165 . . . . . . Knockbacks 6 | . . . . . 3 . . . . 1 2 Impact 3 | . . . . . 3 . . . . . . Kinetic 3 | . . . . . . . . . . 1 2 Secondary . | . . . . . . . . . . . . Self-Inflicted Damage 186 | . 12 . 54 56 26 26 . 12 . . . Shots 6 | . 1 . 1 1 1 1 . 1 . . . Rammed . | . . . . . . . . . . . . Targets Rammed . | . . . . . . . . . . . . Kicked . | . . . . . . . . . . . . Crushed . | . . . . . . . . . . . . Highest Temperature 562 | . 137 505 111 198 562 351 164 316 . 491 18 Average Temperature 124 | . 45 178 47 135 143 110 88 139 . 152 6 Received Heat Transfer 1705 | . 195 198 78 72 783 105 18 . . 144 112 Effects 20 | . . 5 . . 12 . . . . 3 . Shutdowns 7 | . . 1 . . 4 . . . . 2 . Energy Bleed 2 | . . . . . 2 . . . . . . Interference 2 | . . 2 . . . . . . . . . Matter Decay 3 | . . . . . 3 . . . . . . Short Circuit 3 | . . 1 . . 1 . . . . 1 . Damage (minor) 2 | . . 1 . . 1 . . . . . . Damage (core) 1 | . . . . . 1 . . . . . . Siege Activations . | . . . . . . . . . . . . Martial Activations . | . . . . . . . . . . . . Shielding Activations . | . . . . . . . . . . . . Robots Disrupted . | . . . . . . . . . . . . Combat Hostiles . | . . . . . . . . . . . . Robots Corrupted 5 | . . . . 1 4 . . . . . . Combat Hostiles 4 | . . . . 1 3 . . . . . . Parts Fried 5 | . . . . 1 4 . . . . . . Impact Corruptions 5 | . . . . . 5 . . . . . . Robots Melted 3 | . . 1 . . . 2 . . . . . Combat Hostiles 3 | . . 1 . . . 2 . . . . . Parts Melted 22 | . . 2 . . 7 9 . 3 . 1 . Heat Transferred 11843 | . . 777 507 475 4662 3589 161 460 . 1212 . Parts Sabotaged 3 | . . . . . . . . . . . 3 Parts Stolen . | . . . . . . . . . . . . Parts Stripped . | . . . . . . . . . . . . Power Chain Reactions 2 | . . . 1 1 . . . . . . . Alert | -11 -10 -10 -10 -8 -8 -7 -7 -7 -7 -6 -6 ------- Run | Yrd Mat Min Sub Mat Sto Fac Low Low Dat Pro Fac Maximum Alert Level 1 | . . . . . 1 1 . . . . . Low Security (%) 85 | 100 100 100 . 100 72 74 . . . . 100 Level 1 14 | . . . . . 27 25 . . . . . Level 2 . | . . . . . . . . . . . . Level 3 . | . . . . . . . . . . . . Level 4 . | . . . . . . . . . . . . Level 5 . | . . . . . . . . . . . . High Security . | . . . . . . . . . . . . Max Security . | . . . . . . . . . . . . Peak Influence 398 | 5 93 50 . 43 385 398 . . . . 148 Initial 170 | . . 12 . . . 170 . . . . 47 Average 74 | . 42 9 . 6 116 129 . . . . 11 Influence Increases 2676 | 5 143 100 . 124 669 811 20 210 . 310 284 Destroy 0b10 Robot/C 1580 | . 80 80 . 80 380 480 20 180 . 220 60 Destroy 0b10 Robot/NC 115 | 5 5 . . 5 50 50 . . . . . Destroy Leader 396 | . 20 20 . 20 124 122 . 30 . 30 30 Allied During Kill 125 | . . . . . 34 91 . . . . . Successful Hack 76 | . . . . 10 14 27 . . . . 25 Disable Machine 75 | . 30 . . . 45 . . . . . . Destroy Structure 84 | . 8 . . 9 22 41 . . . . 4 Partial Spotted 15 | . . . . . . . . . . . 15 Lose Combat Pursuer 210 | . . . . . . . . . . 60 150 Influence Decreases 2546 | 5 110 133 . 124 294 815 391 210 . 234 230 Entered New Map 393 | . . 21 . . . 205 138 . . . 29 Time Decay 1849 | 5 80 102 . 104 234 530 253 210 . 174 157 Lost Part 244 | . 30 10 . 20 60 20 . . . 60 44 Lost Ally 60 | . . . . . . 60 . . . . . Squads Dispatched 13 | . 1 . . 1 1 6 . . . . 4 Investigation 2 | . . . . 1 . 1 . . . . . Extermination 5 | . . . . . . 3 . . . . 2 Reinforcement 6 | . 1 . . . 1 2 . . . . 2 Assault . | . . . . . . . . . . . . Garrison . | . . . . . . . . . . . . Intercept . | . . . . . . . . . . . . Searches Triggered . | . . . . . . . . . . . . Data Miner Redirects 1 | . . . . . . . . . . . 1 Construction Impeded . | . . . . . . . . . . . . Haulers Reinforced . | . . . . . . . . . . . . Active Scanning Responses . | . . . . . . . . . . . . Cargo Convoy Interrupts 1 | . . . . . . . . . . . 1 Stealth | -11 -10 -10 -10 -8 -8 -7 -7 -7 -7 -6 -6 --------- Run | Yrd Mat Min Sub Mat Sto Fac Low Low Dat Pro Fac Distress Signals 3 | . . . . . 1 1 . . . . 1 Communications Jammed 1 | . . . . . . . 1 . . . . Distress Signals 1 | . . . . . . . 1 . . . . Times Spotted 140 | . 8 6 13 6 25 24 1 9 . 16 32 Peak Tracking Total 14 | . 3 2 5 2 4 4 . 4 . 5 14 Tactical Retreats 5 | . . . . . . . . . . 2 3 Traps | -11 -10 -10 -10 -8 -8 -7 -7 -7 -7 -6 -6 ------- Run | Yrd Mat Min Sub Mat Sto Fac Low Low Dat Pro Fac Traps Triggered 3 | . . . . . 2 . . . . . 1 Indirectly . | . . . . . . . . . . . . Trap Hack Attempts . | . . . . . . . . . . . . Triggered . | . . . . . . . . . . . . Disarmed . | . . . . . . . . . . . . Reprogrammed . | . . . . . . . . . . . . Reused . | . . . . . . . . . . . . Traps Extracted . | . . . . . . . . . . . . Installed . | . . . . . . . . . . . . Triggered . | . . . . . . . . . . . . Machines | -11 -10 -10 -10 -8 -8 -7 -7 -7 -7 -6 -6 ---------- Run | Yrd Mat Min Sub Mat Sto Fac Low Low Dat Pro Fac Machines Disabled 8 | . 5 . . . 3 . . . . . . Max in Single Turn 3 | . 2 . . . 3 . . . . . . Garrison Access 2 | . . . . 1 1 . . . . . . Machines Repaired . | . . . . . . . . . . . . Machines Dismantled . | . . . . . . . . . . . . Machines Sabotaged . | . . . . . . . . . . . . Overloaded Fab Kills . | . . . . . . . . . . . . Hacking | -11 -10 -10 -10 -8 -8 -7 -7 -7 -7 -6 -6 --------- Run | Yrd Mat Min Sub Mat Sto Fac Low Low Dat Pro Fac Machines Accessed 37 | . . . 2 4 10 9 1 1 4 . 6 Terminals 15 | . . . . 2 5 5 . . . . 3 Fabricators 2 | . . . . . . . . . . . 2 Repair Stations 3 | . . . . . 2 1 . . . . . Recycling Units 6 | . . . . . 2 3 . . . . 1 Scanalyzers 1 | . . . . 1 . . . . . . . Garrison Access 2 | . . . . 1 1 . . . . . . Total Hacks 116 | . . . 3 18 23 23 1 1 33 . 14 Successful 73 | . . . 3 8 12 8 1 1 33 . 7 Failed 42 | . . . . 9 11 15 . . . . 7 Catastrophic 6 | . . . . 2 4 . . . . . . Database Lockouts 1 | . . . . 1 . . . . . . . Manual 2 | . . . . . 1 . . . . . 1 Terminals 38 | . . . . 9 11 11 . . . . 7 Fabricators 5 | . . . . . . . . . . . 5 Repair Stations 12 | . . . . . 6 6 . . . . . Recycling Units 11 | . . . . . 3 6 . . . . 2 Scanalyzers 5 | . . . . 5 . . . . . . . Garrison Access 7 | . . . . 4 3 . . . . . . Terminal Hacks 52 | . . . 3 4 4 2 1 1 33 . 4 Record 15 | . . . 1 . . 1 . . 11 . 2 Part Schematic 13 | . . . . . . . . . 13 . . Robot Schematic 6 | . . . . . . . . . 6 . . Robot Analysis 1 | . . . . . 1 . . . . . . Prototype ID Bank 3 | . . . . . . . . . 3 . . Open Door 4 | . . . 1 . 1 . 1 1 . . . Open DSF 2 | . . . . . . 1 . . . . 1 Emergency Access Points 1 | . . . . 1 . . . . . . . Repair Station Index 1 | . . . . 1 . . . . . . . Locate Traps 2 | . . . . 1 1 . . . . . . Dispatch Records 1 | . . . . 1 . . . . . . . Recall Investigation 1 | . . . . . . . . . . . 1 Zone Layout 1 | . . . . . 1 . . . . . . Release Object 1 | . . . 1 . . . . . . . . Fabricator Hacks 2 | . . . . . . . . . . . 2 Load Schematic 2 | . . . . . . . . . . . 2 Repair Station Hacks 8 | . . . . . 4 4 . . . . . Scan Component 4 | . . . . . 2 2 . . . . . Repair 4 | . . . . . 2 2 . . . . . Recycling Unit Hacks 6 | . . . . . 3 2 . . . . 1 Report Inventory 2 | . . . . . 2 . . . . . . Retrieve Components 4 | . . . . . 1 2 . . . . 1 Scanalyzer 3 | . . . . 3 . . . . . . . Insert Component 1 | . . . . 1 . . . . . . . Analyze 1 | . . . . 1 . . . . . . . Retrieve Study 1 | . . . . 1 . . . . . . . Garrison Access Hacks 2 | . . . . 1 1 . . . . . . Seal Access 2 | . . . . 1 1 . . . . . . Unauthorized Hacks . | . . . . . . . . . . . . Terminals . | . . . . . . . . . . . . Fabricators . | . . . . . . . . . . . . Repair Stations . | . . . . . . . . . . . . Recycling Units . | . . . . . . . . . . . . Scanalyzers . | . . . . . . . . . . . . Garrison Access . | . . . . . . . . . . . . Data Cores Recovered . | . . . . . . . . . . . . Used . | . . . . . . . . . . . . Hacking Detections 24 | . . . . 3 8 8 . . . . 5 Full Trace Events 2 | . . . . 1 . 1 . . . . . Feedback Events . | . . . . . . . . . . . . Feedback Blocked . | . . . . . . . . . . . . Robot Schematics Acquired 6 | . . . . . . . . . 6 . . Robots Built . | . . . . . . . . . . . . Authchips . | . . . . . . . . . . . . Time . | . . . . . . . . . . . . Total Robot Build Rating . | . . . . . . . . . . . . Part Schematics Acquired 14 | . . . . 1 . . . . 13 . . Parts Built . | . . . . . . . . . . . . Authchips . | . . . . . . . . . . . . Time . | . . . . . . . . . . . . Total Part Build Rating . | . . . . . . . . . . . . Part Studies Acquired 1 | . . . . 1 . . . . . . . Parts Repaired 4 | . . . . . 2 2 . . . . . Time 128 | . . . . . 64 64 . . . . . Parts Recycled . | . . . . . . . . . . . . Recycled Matter . | . . . . . . . . . . . . Retrieved Matter . | . . . . . . . . . . . . Retrieved Components 18 | . . . . . 10 7 . . . . 1 Parts Scanalyzed 1 | . . . . 1 . . . . . . . Part Schematics Acquired 1 | . . . . 1 . . . . . . . Parts Damaged . | . . . . . . . . . . . . Bothacking | -11 -10 -10 -10 -8 -8 -7 -7 -7 -7 -6 -6 ------------ Run | Yrd Mat Min Sub Mat Sto Fac Low Low Dat Pro Fac Used RIF Installer . | . . . . . . . . . . . . Robots Hacked 2 | . . . . . . . 1 1 . . . Non-combat . | . . . . . . . . . . . . Combat 2 | . . . . . . . 1 1 . . . Robot Hacks Applied 2 | . . . . . . . 1 1 . . . parse_system 2 | . . . . . . . 1 1 . . . Relay Couplers Released 2 | . . . . . 2 . . . . . . Machine Destruction 2 | . . . . . 2 . . . . . . Fabnet Peak Effective % . | . . . . . . . . . . . . Robots Rewired . | . . . . . . . . . . . . Allies Hacked 2 | . . . . . . 2 . . . . . Hacks Repelled . | . . . . . . . . . . . . Allies | -11 -10 -10 -10 -8 -8 -7 -7 -7 -7 -6 -6 -------- Run | Yrd Mat Min Sub Mat Sto Fac Low Low Dat Pro Fac Total Allies 10 | . . . . . 10 . . . . . . Largest Group 10 | . . . . . 10 10 . . . . . Highest-Rated Group 173 | . . . . . 173 173 . . . . . Highest-Rated Ally 29 | . . . . . 29 29 . . . . . Total Orders 13 | . . . . . 11 2 . . . . . ROAM 2 | . . . . . 2 . . . . . . GUARD 2 | . . . . . . 2 . . . . . EXPLORE 9 | . . . . . 9 . . . . . . Ally Attacks 82 | . . . . . 2 80 . . . . . Total Damage 1086 | . . . . . 30 1056 . . . . . Kills 11 | . . . . . 1 10 . . . . . Allies Corrupted . | . . . . . . . . . . . . Allies Melted . | . . . . . . . . . . . . Intel | -11 -10 -10 -10 -8 -8 -7 -7 -7 -7 -6 -6 ------- Run | Yrd Mat Min Sub Mat Sto Fac Low Low Dat Pro Fac Active Infowar (turns) 9398 | . 79 357 . 320 293 1692 1616 911 152 2719 1259 Terrain 1049 | . 79 357 . 320 293 . . . . . . Jamming 8240 | . . . . . . 1692 1616 911 152 2719 1150 ECM 599 | . . . . . . . . . . . 599 Robot Analysis Total 1 | . . . . . 1 . . . . . . Derelict Logs Recovered 4 | . . . 1 . . . 1 1 . 1 . Drone Launches 22 | . . . . . 22 . . . . . . Drone Recoveries 8 | . . . . . 8 . . . . . . Exploration | -11 -10 -10 -10 -8 -8 -7 -7 -7 -7 -6 -6 ------------- Run | Yrd Mat Min Sub Mat Sto Fac Low Low Dat Pro Fac Turns Passed 13483 | 69 224 593 818 640 2222 1804 1616 911 152 2869 1565 Spaces Moved 5777 | 47 129 167 641 245 696 957 994 513 96 791 501 Core 626 | 3 . . 3 . . . . . . 504 116 Treads 3559 | . . . . 16 696 957 994 513 96 287 . Legs 495 | . 71 167 59 . . . . . . . 198 Wheels 910 | 44 58 . 579 229 . . . . . . . Hover . | . . . . . . . . . . . . Flight 187 | . . . . . . . . . . . 187 Fastest Speed 40 | 50 100 120 110 95 160 160 160 160 160 50 40 Average Speed 170 | 96 111 120 114 119 160 160 160 160 160 344 96 Slowest Speed 1050 | 100 120 120 600 200 163 226 160 160 160 1050 190 Overloaded Moves . | . . . . . . . . . . . . Propulsion Burnouts . | . . . . . . . . . . . . Robots Hopped 1 | . . . . . . . . . . . 1 Potential Cave-ins . | . . . . . . . . . . . . Cave-ins Triggered . | . . . . . . . . . . . . Exploration Rate (%) 46 | 3 30 26 33 22 79 25 97 66 73 87 14 Regions Visited 11 Branch Regions 7 Pre-discovered Areas 1 | . . . . . . . . . 1 . . Known Exits Taken 1 | . . . . . 1 . . . . . . Unknown Exits Taken 10 | 1 1 1 1 1 . 1 1 1 1 1 . Scrap Searched 12 | . . . 1 . . . 2 6 . 3 . Spaces Dug 11 | . . . . . . 11 . . . . . Terrain Destroyed 162 | . 8 . 1 11 20 50 . 68 . . 4 Melee . | . . . . . . . . . . . . Projectile 7 | . . . 1 2 . . . . . . 4 AOE 155 | . 8 . . 9 20 50 . 68 . . . Terrain Rammed . | . . . . . . . . . . . . Walls Destroyed . | . . . . . . . . . . . . Machines Disabled . | . . . . . . . . . . . . Actions | -11 -10 -10 -10 -8 -8 -7 -7 -7 -7 -6 -6 --------- Run | Yrd Mat Min Sub Mat Sto Fac Low Low Dat Pro Fac Total 8919 | 65 180 524 692 561 1651 1130 1014 577 95 870 1560 Wait 2575 | . 4 324 4 282 802 86 . 42 . 25 1006 Move 5764 | 46 128 166 640 244 695 956 993 512 95 790 499 Hop 1 | . . . . . . . . . . . 1 Pick Up 62 | 8 6 5 5 5 16 7 2 . . 4 4 Fast Attach 69 | . 3 1 7 6 21 11 1 2 . . 17 Attach 69 | 6 9 3 6 6 10 6 3 3 . 11 6 Detach 32 | . 7 . 1 1 5 6 3 4 . 1 4 Swap 10 | . . . . 1 4 4 1 . . . . Drop 70 | . 1 4 11 3 24 10 3 . . 2 12 Fire 252 | 5 22 21 17 13 61 43 8 14 . 37 11 Melee 9 | . . . . . 9 . . . . . . Ram . | . . . . . . . . . . . . Kick . | . . . . . . . . . . . . Crush . | . . . . . . . . . . . . Escape Stasis . | . . . . . . . . . . . . Rewire 1 | . . . . . . 1 . . . . . Trap . | . . . . . . . . . . . . Miscellaneous 5 | . . . 1 . 4 . . . . . . Route ------- -11/Scrapyard -10/Materials -10/Mines -10/Subcaves -8/Materials (discovered 3 exits: *Fac x2 / *Sto) -8/Storage -7/Factory (discovered 2 exits: *Fac / *Low) -7/Lower Caves -7/Lower Caves -7/Data Miner -6/Proximity Caves -6/Factory (discovered 1 exit: Fac) History --------- Turn | Location | Event 33 | -11/Scrapyard | Discovered new exit (range 15) 70 | -11/Scrapyard | Entered Materials 202 | -10/Materials | Lost 3 parts (1n2w) 265 | -10/Materials | Discovered new exit (range 15) 294 | -10/Materials | Entered Mines 423 | -10/Mines | Discovered new exit (range 9) 455 | -10/Mines | Build established: Scavenger-Mutant 887 | -10/Mines | Entered Subcaves 959 | -10/Subcaves | Ambushed by swarm of Subdwellers 1001 | -10/Subcaves | Lost 3 parts (1n2w) 1003 | -10/Subcaves | Shifting Twisted Machinery released Riot Gun 1009 | -10/Subcaves | Shifting Twisted Machinery released Sub. Machine Gun 1018 | -10/Subcaves | Shifting Twisted Machinery released Flamer 1263 | -10/Subcaves | Build established: Subdweller-Mutant 1352 | -10/Subcaves | Shifting Twisted Machinery released Sub. Beam Cannon 1421 | -10/Subcaves | Learned 2 Materials zone layouts 1427 | -10/Subcaves | Released subatomizers from SUBCON Basin 1589 | -10/Subcaves | A swath of the cavern ceiling suddenly collapsed 1649 | -10/Subcaves | Core integrity fell below 50% 1697 | -10/Subcaves | Discovered new exit (range 6) 1705 | -10/Subcaves | Entered Materials 1705 | -8/Materials | Evolved 4 slots: Power x1, Propulsion x1, Utility x1, Weapon x1 1706 | -8/Materials | Identified exit to Factory 1813 | -8/Materials | Central database locked down 2014 | -8/Materials | Discovered exit to Factory (range 9) 2014 | -8/Materials | Discovered new exit (range 8) 2143 | -8/Materials | Build established: Scavenger-Mutant 2345 | -8/Materials | Entered Storage 2390 | -8/Storage | Repaired Particle Gun 2426 | -8/Storage | Repaired Disposable Heat Sink 2707 | -8/Storage | Lost 13 allies 2783 | -8/Storage | Build established: Scavenger-Gunner 3385 | -8/Storage | Core integrity fell below 50% 3425 | -8/Storage | Lost 5 parts (2p2n1u) 4270 | -8/Storage | Assisted by bots powering up and referring to "LRC-V3" 4456 | -8/Storage | Discovered exit to Factory (range 16) 4561 | -8/Storage | Build established: Commander-Gunner 4567 | -8/Storage | Entered Factory 4567 | -7/Factory | Accompanied by 10 allies 4567 | -7/Factory | Evolved 2 slots: Utility x1, Weapon x1 5036 | -7/Factory | P-60 Hacker assimilated allied Trooper 3a 5210 | -7/Factory | Repaired Imp. Treads+ 5244 | -7/Factory | Repaired Particle Gun 5754 | -7/Factory | Lost 5 allies 6013 | -7/Factory | Build established: Gunner 6218 | -7/Factory | Discovered new exit (range 16) 6353 | -7/Factory | Discovered new exit (range 8) 6371 | -7/Factory | Entered Lower Caves 6440 | -7/Lower Caves | Entered an active Warlord outpost 6647 | -7/Lower Caves | Learned Factory stockpile data 7343 | -7/Lower Caves | Discovered new exit (range 14) 7987 | -7/Lower Caves | Entered another Lower Caves area 8189 | -7/Lower Caves | Spotted B-75 Beast 8468 | -7/Lower Caves | Learned Factory emergency access door positions 8487 | -7/Lower Caves | Discovered new exit (range 15) 8591 | -7/Lower Caves | Encountered a Warlord checkpoint 8898 | -7/Lower Caves | Entered Data Miner 8898 | -7/Data Miner | Discovered new exit (range 6) 8929 | -7/Data Miner | Met Data Miner 9001 | -7/Data Miner | Learned location of Section 7 (-3) 9001 | -7/Data Miner | Acquired the access code to Warlord's prototype stash 9015 | -7/Data Miner | Received God Mode back door access code from Data Miner 9050 | -7/Data Miner | Entered Proximity Caves 9166 | -6/Proximity Caves | Attracted the attention of an 0b10 checkpoint 9376 | -6/Proximity Caves | Lost 5 parts (1n1u3w) 9470 | -6/Proximity Caves | Attracted the attention of an 0b10 outpost 9532 | -6/Proximity Caves | Lost 3 parts (2n1w) 10063 | -6/Proximity Caves | Lost 3 parts (1p2w) 10327 | -6/Proximity Caves | Learned location of 1 exit from Factory 10344 | -6/Proximity Caves | Build established: Mutant 11809 | -6/Proximity Caves | Lost 6 parts (2p2u2w) 11854 | -6/Proximity Caves | Core integrity fell below 50% 11917 | -6/Proximity Caves | Discovered new exit (range 3) 11919 | -6/Proximity Caves | Entered Factory 11919 | -6/Factory | Evolved 2 slots: Propulsion x1, Utility x1 11920 | -6/Factory | Identified exit to Factory 12260 | -6/Factory | Build established: Infiltrator-Mutant 13053 | -6/Factory | Build established: Infiltrator-Tank 13331 | -6/Factory | Cargo convoy interrupted 13357 | -6/Factory | Incoming assault squad redirected 13382 | -6/Factory | Core integrity fell below 50% 13407 | -6/Factory | Lost 4 parts (1p1n1u1w) 13445 | -6/Factory | Core integrity fell below 20% 13484 | -6/Factory | Destroyed by P-60 Hacker with Shock Rifle Last Messages --------------- Imp. Sensor Array tumbles out of TF Node. Imp. Signal Interpreter tumbles out of TF Node. P-60 Hacker resets P-60 Hacker, system corruption cleaned. U-05 Engineer destroyed. ALERT: Suspicious intruders detected, dispatching Specialist reinforcements to area. Imp. Propulsion Shielding destroyed. K-01 Serf collects debris. K-01 Serf destroyed. System corrupted: Energy discharge (-22). P-60 Hacker resets R-10 Processor, system corruption cleaned. P-60 Hacker resets P-60 Hacker, system corruption cleaned. Pressure Siphon disabled. K-01 Serf collects debris. Flexi-carbon Leg destroyed. Dropped Flexi-carbon Leg. Drone sends a signal. Map ----- +----------------------------------------------------+ | ?????????????????????????????????????????????????? | | ?????????????????????????????????????????????????? | | ?????????????????????????????????????????????????? | | ????????????????????????????????????*????????????? | | ?????????????????????????????????????????????????? | | ?????????????????????????????????????????????????? | | ?????????????????????????????????????????????????? | | ?????????????????????????????????????????????????? | | ?????????????????????????????????????????????????? | | ?????????????????????????????????????????????????? | | ?????????????????????????????????????????????????? | | ?????????????????????????????????????????????????? | | ???????????????????????????????????????+?????????? | | ?????????????????????????????????????????????????? | | ?????????? ????????????????????????????????????? | | ???????? ????????????????????????????????????? | | ???????? #???????????????????????????????????? | | ???????# #???????????????????????????????????? | | ???##### ###+#???????????????????????????????? | | ??? ?????????????????????+?????????? | | ?? ????????????????????????????????? | | ? ?????????????????????????????????? | | ! ?????????????????????????????????? | | ??????????????????????????????????? | | """" """" #?########+#####????????????????????? | | """" """" #?# @ #????????????????????? | | ""%" """" #?# #????????????????????? | | ###p pp"""""" #????????????????????? | | = + """""" #????????????????????? | | # ### p """""" #????????????????????? | | # #?# p"""""" #????????????????????? | | # ########## #????????????????????? | | # # #! """""" #????????????????????? | | # # """ # """""" #????????????????????? | | # + ! "Y" # ! """""" #????????????????????? | | + # # """""" #????????????????????? | | # # # #????????????????????? | | # #? ##############????????????????????? | | ## ##?########?????????????????????????????????? | | ?# #???????????????????????????????????????????? | | ?# #???????????????????????????????????????????? | | ?# #???????????????????????????????????????????? | | ## ###?????????????????????????????????????????? | | #?????????????????????????????????????????? | | #?????????????????????????????????????????? | | "" #?????????????????????????????????????????? | | T #?????????????????????????????????????????? | | #?????????????????????????????????????????? | | #?????????????????????????????????????????? | | #?????????????????????????????????????????? | +----------------------------------------------------+ Best States ------------- Heat Dissipation 72 Coolant Potential 65 Energy Generation 31 Energy Capacity 520 Matter Stores 300 Matter Capacity 550 Sight Range 16 Terrain Scan Range 16 Terrain Scan Density 85 ECM Strength 2 Jamming Range 12 Armor Coverage 800 Propulsion Shielding 66 Evasion (%) 62 Targeting Accuracy 5 Recoil Reduction 3 Item Schematics ----------------- Flamer | -8/Materials | Scanalyzed Graphene Brace | -7/Data Miner | Free Imp. Linear Gravjet | -7/Data Miner | Free Lrn. Proton Cannon | -7/Data Miner | Free Wave Gun | -7/Data Miner | Free Imp. Hacking Suite | -7/Data Miner | Free Hvy. Shock Bomb Launcher | -7/Data Miner | Free Imp. Thermal Shield | -7/Data Miner | Free Gyrokinetic Inverter | -7/Data Miner | Free Exp. Targeting Computer | -7/Data Miner | Free Antimatter Cannon | -7/Data Miner | Free Biomechanical Wings | -7/Data Miner | Free Lgt. Regenerative Plating | -7/Data Miner | Free Combat Drone Bay | -7/Data Miner | Free Robot Schematics ------------------ S-27 Virus | -7/Data Miner | Free A-15 Conveyor | -7/Data Miner | Free L-41 Fighter | -7/Data Miner | Free R-10 Processor | -7/Data Miner | Free Y-54 Guardian | -7/Data Miner | Free G-50 Soldier | -7/Data Miner | Free Fabricated ------------ Nothing Repaired ---------- Particle Gun | 28% | -8/Storage Disposable Heat Sink | 32% | -8/Storage Imp. Treads | 14% | -7/Factory Particle Gun | 13% | -7/Factory Studied --------- Imp. Treads | -8/Materials | Hacked Alien Tech Used ----------------- None Achievements -------------- A Problem For Future Me Jackpot Novice Programmer Plot Armor Resistances Are Futile Throw Away The Key Challenges ------------ None Game ------ Seed ArchitectHackingBattery Manual? 0 Play Time 01:58:00 Cumulative 15.0 hours Start 2025.12.15 @ 20:37:52 End 2025.12.15 @ 22:38:05 Sessions 1 Manual Loads 0 Difficulty Rogue Special Mode None Game No. 20 Rogue 20 Adventurer 0 Explorer 0 Win Type - Total 0 Types 0/0/0/0/0/0/0/0/0/0 Lore% 12 Gallery% 21 Achievement% 15 Wizard Run 0 Options --------- Layout 1 ASCII 0 Keyboard 0 Movement Mouse Keybinds 0 Fullscreen 2 Font 32/SmallcapsGlow Map View 50x35 Zoom Use 0% Tactical HUD 0 Map Filters NONE Filters NONE Steam 1 RUN: 9051b0a5-348e-4f14-8733-b8d9ddaa6f5f